[Event "Titled Tuesday Blitz October 5 2021"]
[White "De Silva, L M S T"]
[Black "Matamoros Franco, Carlos S."]
[WhiteFideId "9953698"]
[BlackFideId "3600017"]
[WhiteElo "1621"]
[BlackElo "2554"]
[Result "1-0"]
[Round "07"]
[TimeControl "180+1"]
[Date "2021.10.05"]
[WhiteClock "0:00:41"]
[BlackClock "0:00:22"]

1. Nf3 {[%clk 0:03:00]}  Nf6 {[%clk 0:02:59]} 2. b3 {[%clk 0:03:01]}  g6 {[%clk 0:02:58]} 3. Bb2 {[%clk 0:03:02]}  Bg7 {[%clk 0:02:58]} 4. e3 {[%clk 0:03:03]}  O-O {[%clk 0:02:58]} 5. c4 {[%clk 0:03:03]}  d6 {[%clk 0:02:59]} 6. Nc3 {[%clk 0:03:04]}  e5 {[%clk 0:02:58]} 7. d3 {[%clk 0:03:04]}  Re8 {[%clk 0:02:56]} 8. Be2 {[%clk 0:03:05]}  a5 {[%clk 0:02:54]} 9. O-O {[%clk 0:03:05]}  c6 {[%clk 0:02:55]} 10. Nd2 {[%clk 0:03:04]}  Na6 {[%clk 0:02:55]} 11. Nde4 {[%clk 0:03:03]}  Rb8 {[%clk 0:02:46]} 12. Rc1 {[%clk 0:03:00]}  b5 {[%clk 0:02:37]} 13. cxb5 {[%clk 0:02:58]}  cxb5 {[%clk 0:02:36]} 14. Nxf6+ {[%clk 0:02:59]}  Bxf6 {[%clk 0:02:36]} 15. Nd5 {[%clk 0:03:00]}  Bg7 {[%clk 0:02:33]} 16. d4 {[%clk 0:02:58]}  e4 {[%clk 0:02:13]} 17. a4 {[%clk 0:02:53]}  bxa4 {[%clk 0:02:06]} 18. Re1 {[%clk 0:02:46]}  axb3 {[%clk 0:01:32]} 19. Bxa6 {[%clk 0:02:44]}  Bxa6 {[%clk 0:01:31]} 20. Nc7 {[%clk 0:02:45]}  Bd3 {[%clk 0:01:23]} 21. Nxe8 {[%clk 0:02:43]}  Qxe8 {[%clk 0:01:24]} 22. Qd2 {[%clk 0:02:44]}  Qb5 {[%clk 0:01:18]} 23. Ra1 {[%clk 0:02:44]}  a4 {[%clk 0:01:16]} 24. Rec1 {[%clk 0:02:45]}  Bc2 {[%clk 0:01:02]} 25. h3 {[%clk 0:02:35]}  d5 {[%clk 0:00:57]} 26. Qc3 {[%clk 0:02:22]}  Bf8 {[%clk 0:00:53]} 27. Qc7 {[%clk 0:01:36]}  Ra8 {[%clk 0:00:52]} 28. Rf1 {[%clk 0:00:45]}  a3 {[%clk 0:00:50]} 29. f3 {[%clk 0:00:44]}  Ra6 {[%clk 0:00:28]} 30. fxe4 {[%clk 0:00:41]}  Bxe4 {[%clk 0:00:22]} 31. Qxf7+ {[%clk 0:00:41]} 1-0


[Site "https://www.chess.com"]

[Event "Titled Tuesday Blitz October 5 2021"]
[White "Demchenko, Anton"]
[Black "Ivanisevic, Ivan"]
[WhiteFideId "4160258"]
[BlackFideId "912417"]
[WhiteElo "2583"]
[BlackElo "2499"]
[Result "1-0"]
[Round "07"]
[TimeControl "180+1"]
[Date "2021.10.05"]
[WhiteClock "0:00:07"]
[BlackClock "0:00:02"]

1. e4 {[%clk 0:03:00]}  c5 {[%clk 0:02:59]} 2. Nf3 {[%clk 0:03:00]}  Nc6 {[%clk 0:03:00]} 3. d4 {[%clk 0:03:00]}  cxd4 {[%clk 0:02:59]} 4. Nxd4 {[%clk 0:03:01]}  e5 {[%clk 0:03:00]} 5. Nb5 {[%clk 0:02:59]}  d6 {[%clk 0:03:00]} 6. N1c3 {[%clk 0:02:58]}  a6 {[%clk 0:02:59]} 7. Na3 {[%clk 0:02:59]}  b5 {[%clk 0:03:00]} 8. Nab1 {[%clk 0:02:58]}  Be7 {[%clk 0:02:42]} 9. a4 {[%clk 0:02:55]}  b4 {[%clk 0:02:41]} 10. Nd5 {[%clk 0:02:56]}  Nf6 {[%clk 0:02:38]} 11. Nxf6+ {[%clk 0:02:47]}  Bxf6 {[%clk 0:02:37]} 12. Bc4 {[%clk 0:02:47]}  O-O {[%clk 0:02:35]} 13. Bd5 {[%clk 0:02:41]}  Qc7 {[%clk 0:02:34]} 14. O-O {[%clk 0:02:40]}  Be6 {[%clk 0:02:34]} 15. c4 {[%clk 0:02:33]}  Bxd5 {[%clk 0:02:31]} 16. exd5 {[%clk 0:02:21]}  Nd4 {[%clk 0:02:27]} 17. b3 {[%clk 0:02:21]}  g6 {[%clk 0:02:09]} 18. Bb2 {[%clk 0:02:17]}  Nf5 {[%clk 0:02:09]} 19. a5 {[%clk 0:02:10]}  Bg7 {[%clk 0:02:08]} 20. Ra4 {[%clk 0:02:09]}  Rab8 {[%clk 0:02:08]} 21. Nd2 {[%clk 0:02:06]}  Nh6 {[%clk 0:01:50]} 22. Ne4 {[%clk 0:02:03]}  f6 {[%clk 0:01:38]} 23. Qe1 {[%clk 0:01:30]}  Nf7 {[%clk 0:01:34]} 24. Rxb4 {[%clk 0:01:30]}  f5 {[%clk 0:01:34]} 25. Ng3 {[%clk 0:01:17]}  h5 {[%clk 0:01:31]} 26. Bc3 {[%clk 0:01:08]}  Nh6 {[%clk 0:01:29]} 27. h3 {[%clk 0:01:05]}  Rxb4 {[%clk 0:01:09]} 28. Bxb4 {[%clk 0:01:04]}  Rb8 {[%clk 0:01:10]} 29. Qd2 {[%clk 0:00:59]}  Nf7 {[%clk 0:01:07]} 30. Rb1 {[%clk 0:00:54]}  Bh6 {[%clk 0:01:06]} 31. Qe1 {[%clk 0:00:54]}  e4 {[%clk 0:01:05]} 32. Bc3 {[%clk 0:00:48]}  Qc5 {[%clk 0:01:00]} 33. Ne2 {[%clk 0:00:46]}  Ne5 {[%clk 0:01:00]} 34. Bd4 {[%clk 0:00:40]}  Qc7 {[%clk 0:00:58]} 35. Qc3 {[%clk 0:00:28]}  Nd3 {[%clk 0:00:55]} 36. b4 {[%clk 0:00:28]}  Qf7 {[%clk 0:00:51]} 37. b5 {[%clk 0:00:26]}  f4 {[%clk 0:00:49]} 38. f3 {[%clk 0:00:22]}  Qf5 {[%clk 0:00:44]} 39. Rf1 {[%clk 0:00:17]}  e3 {[%clk 0:00:37]} 40. bxa6 {[%clk 0:00:13]}  Nf2 {[%clk 0:00:37]} 41. a7 {[%clk 0:00:12]}  Ra8 {[%clk 0:00:35]} 42. Rxf2 {[%clk 0:00:09]}  exf2+ {[%clk 0:00:35]} 43. Kxf2 {[%clk 0:00:10]}  Qd7 {[%clk 0:00:33]} 44. Qb2 {[%clk 0:00:08]}  Bf8 {[%clk 0:00:30]} 45. Qb6 {[%clk 0:00:07]}  Be7 {[%clk 0:00:27]} 46. Nc3 {[%clk 0:00:07]}  Bd8 {[%clk 0:00:26]} 47. Qb5 {[%clk 0:00:05]}  Rxa7 {[%clk 0:00:24]} 48. Bxa7 {[%clk 0:00:04]}  Qxa7+ {[%clk 0:00:25]} 49. Ke2 {[%clk 0:00:04]}  Qe3+ {[%clk 0:00:24]} 50. Kd1 {[%clk 0:00:04]}  Bh4 {[%clk 0:00:23]} 51. Kc2 {[%clk 0:00:03]}  Be1 {[%clk 0:00:22]} 52. Nb1 {[%clk 0:00:03]}  Qe2+ {[%clk 0:00:21]} 53. Kb3 {[%clk 0:00:03]}  Qd1+ {[%clk 0:00:21]} 54. Kb2 {[%clk 0:00:03]}  Qe2+ {[%clk 0:00:20]} 55. Ka1 {[%clk 0:00:03]}  Bf2 {[%clk 0:00:19]} 56. Qb2 {[%clk 0:00:03]}  Qe1 {[%clk 0:00:18]} 57. a6 {[%clk 0:00:03]}  Qa5+ {[%clk 0:00:17]} 58. Qa3 {[%clk 0:00:03]}  Bd4+ {[%clk 0:00:13]} 59. Ka2 {[%clk 0:00:04]}  Qe1 {[%clk 0:00:11]} 60. Qxd6 {[%clk 0:00:04]}  Qe2+ {[%clk 0:00:11]} 61. Kb3 {[%clk 0:00:03]}  Qd3+ {[%clk 0:00:11]} 62. Ka4 {[%clk 0:00:04]}  Qxc4+ {[%clk 0:00:10]} 63. Ka5 {[%clk 0:00:04]}  Qa2+ {[%clk 0:00:09]} 64. Kb5 {[%clk 0:00:05]}  Qxb1+ {[%clk 0:00:09]} 65. Kc6 {[%clk 0:00:06]}  Qc2+ {[%clk 0:00:07]} 66. Kd7 {[%clk 0:00:06]}  Qa4+ {[%clk 0:00:07]} 67. Ke7 {[%clk 0:00:05]}  Kg7 {[%clk 0:00:05]} 68. Qc6 {[%clk 0:00:04]}  Qb4+ {[%clk 0:00:05]} 69. Kd7 {[%clk 0:00:04]}  Bf6 {[%clk 0:00:05]} 70. d6 {[%clk 0:00:05]}  Qa5 {[%clk 0:00:04]} 71. Qb7 {[%clk 0:00:05]}  Qd8+ {[%clk 0:00:04]} 72. Ke6+ {[%clk 0:00:05]}  Kh6 {[%clk 0:00:05]} 73. d7 {[%clk 0:00:05]}  Qe7+ {[%clk 0:00:05]} 74. Kd5 {[%clk 0:00:06]}  Qe5+ {[%clk 0:00:05]} 75. Kc6 {[%clk 0:00:06]}  Be7 {[%clk 0:00:05]} 76. Qc7 {[%clk 0:00:06]}  Qc5+ {[%clk 0:00:04]} 77. Kb7 {[%clk 0:00:06]}  Qd5+ {[%clk 0:00:05]} 78. Qc6 {[%clk 0:00:06]}  Qb3+ {[%clk 0:00:05]} 79. Kc8 {[%clk 0:00:06]}  Qd3 {[%clk 0:00:02]} 80. a7 {[%clk 0:00:06]}  Qa3 {[%clk 0:00:02]} 81. a8=Q {[%clk 0:00:06]}  Qxa8+ {[%clk 0:00:02]} 82. Qxa8 {[%clk 0:00:06]}  Bd8 {[%clk 0:00:02]} 83. Qd5 {[%clk 0:00:07]} 1-0


[Site "https://www.chess.com"]

[Event "Titled Tuesday Blitz October 5 2021"]
[White "Ertan, Can"]
[Black "Bodnaruk, Anastasia"]
[WhiteFideId "6306330"]
[BlackFideId "4181751"]
[WhiteElo "2223"]
[BlackElo "2406"]
[Result "1-0"]
[Round "07"]
[TimeControl "180+1"]
[Date "2021.10.05"]
[WhiteClock "0:00:14"]
[BlackClock "0:00:04"]

1. e4 {[%clk 0:02:58]}  c5 {[%clk 0:02:59]} 2. Nf3 {[%clk 0:02:58]}  d6 {[%clk 0:03:00]} 3. c3 {[%clk 0:02:58]}  Nf6 {[%clk 0:02:59]} 4. Qc2 {[%clk 0:02:59]}  Qc7 {[%clk 0:02:56]} 5. Bc4 {[%clk 0:02:58]}  e6 {[%clk 0:02:52]} 6. O-O {[%clk 0:02:58]}  Be7 {[%clk 0:02:53]} 7. d4 {[%clk 0:02:58]}  O-O {[%clk 0:02:46]} 8. e5 {[%clk 0:02:56]}  dxe5 {[%clk 0:02:40]} 9. dxe5 {[%clk 0:02:56]}  Nd5 {[%clk 0:02:33]} 10. Qe4 {[%clk 0:02:48]}  Nc6 {[%clk 0:02:20]} 11. Bxd5 {[%clk 0:02:37]}  exd5 {[%clk 0:02:18]} 12. Qxd5 {[%clk 0:02:38]}  Bg4 {[%clk 0:02:17]} 13. Bf4 {[%clk 0:02:30]}  Rad8 {[%clk 0:02:04]} 14. Qe4 {[%clk 0:02:30]}  Bxf3 {[%clk 0:01:57]} 15. Qxf3 {[%clk 0:02:30]}  Nxe5 {[%clk 0:01:57]} 16. Bxe5 {[%clk 0:02:29]}  Qxe5 {[%clk 0:01:57]} 17. Qxb7 {[%clk 0:02:30]}  Rb8 {[%clk 0:01:40]} 18. Qxa7 {[%clk 0:02:28]}  Rxb2 {[%clk 0:01:39]} 19. Na3 {[%clk 0:02:27]}  Re2 {[%clk 0:01:10]} 20. Nb5 {[%clk 0:02:16]}  c4 {[%clk 0:00:51]} 21. a4 {[%clk 0:01:53]}  Bc5 {[%clk 0:00:50]} 22. Qd7 {[%clk 0:01:34]}  Qf6 {[%clk 0:00:37]} 23. Nd4 {[%clk 0:01:30]}  Rd8 {[%clk 0:00:37]} 24. Qg4 {[%clk 0:01:15]}  Bxd4 {[%clk 0:00:32]} 25. Qxe2 {[%clk 0:01:11]}  Bxc3 {[%clk 0:00:29]} 26. Rad1 {[%clk 0:01:11]}  Bd4 {[%clk 0:00:11]} 27. Qxc4 {[%clk 0:01:01]}  h5 {[%clk 0:00:11]} 28. Rd2 {[%clk 0:00:55]}  Rd6 {[%clk 0:00:10]} 29. Kh1 {[%clk 0:00:51]}  h4 {[%clk 0:00:08]} 30. h3 {[%clk 0:00:49]}  Be5 {[%clk 0:00:05]} 31. Re2 {[%clk 0:00:29]}  Rd4 {[%clk 0:00:04]} 32. Qc8+ {[%clk 0:00:29]}  Kh7 {[%clk 0:00:04]} 33. Qc5 {[%clk 0:00:18]}  Bd6 {[%clk 0:00:03]} 34. Qh5+ {[%clk 0:00:17]}  Kg8 {[%clk 0:00:04]} 35. Re8+ {[%clk 0:00:17]}  Bf8 {[%clk 0:00:04]} 36. Qc5 {[%clk 0:00:14]} 1-0


[Site "https://www.chess.com"]

[Event "Titled Tuesday Blitz October 5 2021"]
[White "Garcia Blanco, Omar"]
[Black "Krysa, Leandro"]
[WhiteFideId "2287153"]
[BlackFideId "116807"]
[WhiteElo "2291"]
[BlackElo "2490"]
[Result "0-1"]
[Round "07"]
[TimeControl "180+1"]
[Date "2021.10.05"]
[WhiteClock "0:00:18"]
[BlackClock "0:00:07"]

1. e4 {[%clk 0:03:00]}  c5 {[%clk 0:03:00]} 2. c3 {[%clk 0:03:00]}  Nf6 {[%clk 0:02:59]} 3. e5 {[%clk 0:02:59]}  Nd5 {[%clk 0:03:00]} 4. d4 {[%clk 0:02:59]}  cxd4 {[%clk 0:03:00]} 5. Nf3 {[%clk 0:02:59]}  Nc6 {[%clk 0:02:59]} 6. cxd4 {[%clk 0:02:59]}  d6 {[%clk 0:02:56]} 7. Bc4 {[%clk 0:02:59]}  dxe5 {[%clk 0:02:56]} 8. dxe5 {[%clk 0:02:59]}  Ndb4 {[%clk 0:02:55]} 9. O-O {[%clk 0:02:59]}  Qxd1 {[%clk 0:02:32]} 10. Rxd1 {[%clk 0:03:00]}  Bg4 {[%clk 0:02:11]} 11. Nc3 {[%clk 0:03:00]}  Bxf3 {[%clk 0:01:47]} 12. gxf3 {[%clk 0:03:01]}  e6 {[%clk 0:01:47]} 13. a3 {[%clk 0:02:47]}  Nc2 {[%clk 0:01:31]} 14. Ra2 {[%clk 0:02:45]}  N2d4 {[%clk 0:01:28]} 15. f4 {[%clk 0:02:41]}  O-O-O {[%clk 0:01:21]} 16. Kg2 {[%clk 0:02:24]}  Be7 {[%clk 0:01:21]} 17. b4 {[%clk 0:02:21]}  a6 {[%clk 0:01:20]} 18. Be3 {[%clk 0:02:03]}  Rd7 {[%clk 0:01:18]} 19. Rad2 {[%clk 0:02:00]}  Rhd8 {[%clk 0:01:18]} 20. Ne4 {[%clk 0:01:57]}  Kc7 {[%clk 0:01:09]} 21. Ng3 {[%clk 0:01:14]}  g6 {[%clk 0:01:05]} 22. Ne2 {[%clk 0:01:06]}  Nxe2 {[%clk 0:00:54]} 23. Bxe2 {[%clk 0:00:59]}  Rxd2 {[%clk 0:00:50]} 24. Rxd2 {[%clk 0:01:00]}  Rxd2 {[%clk 0:00:49]} 25. Bxd2 {[%clk 0:01:01]}  Na7 {[%clk 0:00:41]} 26. Bc3 {[%clk 0:00:57]}  Nb5 {[%clk 0:00:33]} 27. Bb2 {[%clk 0:00:57]}  Kc6 {[%clk 0:00:31]} 28. Bc4 {[%clk 0:00:55]}  Nc7 {[%clk 0:00:30]} 29. Kf3 {[%clk 0:00:54]}  b5 {[%clk 0:00:28]} 30. Bb3 {[%clk 0:00:54]}  Nd5 {[%clk 0:00:26]} 31. Ke4 {[%clk 0:00:54]}  Nb6 {[%clk 0:00:26]} 32. Bd4 {[%clk 0:00:53]}  h5 {[%clk 0:00:23]} 33. Bxb6 {[%clk 0:00:47]}  Kxb6 {[%clk 0:00:23]} 34. Kd3 {[%clk 0:00:43]}  a5 {[%clk 0:00:21]} 35. Kc3 {[%clk 0:00:43]}  a4 {[%clk 0:00:21]} 36. Bc2 {[%clk 0:00:42]}  Bh4 {[%clk 0:00:20]} 37. f3 {[%clk 0:00:41]}  Be1+ {[%clk 0:00:20]} 38. Kd3 {[%clk 0:00:39]}  Bf2 {[%clk 0:00:18]} 39. Bb1 {[%clk 0:00:39]}  Bg1 {[%clk 0:00:18]} 40. h3 {[%clk 0:00:39]}  Kc6 {[%clk 0:00:17]} 41. Ke4 {[%clk 0:00:39]}  Bf2 {[%clk 0:00:15]} 42. Ba2 {[%clk 0:00:39]}  Be1 {[%clk 0:00:14]} 43. Bb1 {[%clk 0:00:39]}  Bc3 {[%clk 0:00:14]} 44. Ba2 {[%clk 0:00:39]}  Bb2 {[%clk 0:00:14]} 45. Bb1 {[%clk 0:00:40]}  Bxa3 {[%clk 0:00:14]} 46. f5 {[%clk 0:00:34]}  gxf5+ {[%clk 0:00:13]} 47. Kf4 {[%clk 0:00:35]}  Bxb4 {[%clk 0:00:13]} 48. Kg5 {[%clk 0:00:35]}  Bd2+ {[%clk 0:00:12]} 49. Kf6 {[%clk 0:00:33]}  b4 {[%clk 0:00:10]} 50. Bc2 {[%clk 0:00:22]}  b3 {[%clk 0:00:10]} 51. Bd1 {[%clk 0:00:23]}  Kb5 {[%clk 0:00:08]} 52. Kxf7 {[%clk 0:00:22]}  Kb4 {[%clk 0:00:08]} 53. Kxe6 {[%clk 0:00:22]}  a3 {[%clk 0:00:07]} 54. Kf6 {[%clk 0:00:18]}  a2 {[%clk 0:00:07]} 0-1


[Site "https://www.chess.com"]

[Event "Titled Tuesday Blitz October 5 2021"]
[White "Gimenez Aguirre, Alejo Ismael"]
[Black "Fier, Alexandr"]
[WhiteFideId "32041667"]
[BlackFideId "2107139"]
[WhiteElo "2031"]
[BlackElo "2569"]
[Result "0-1"]
[Round "07"]
[TimeControl "180+1"]
[Date "2021.10.05"]
[WhiteClock "0:00:08"]
[BlackClock "0:01:42"]

1. e4 {[%clk 0:03:00]}  Nf6 {[%clk 0:02:58]} 2. e5 {[%clk 0:03:00]}  Nd5 {[%clk 0:02:58]} 3. d4 {[%clk 0:03:01]}  d6 {[%clk 0:02:58]} 4. exd6 {[%clk 0:03:02]}  cxd6 {[%clk 0:02:58]} 5. Nf3 {[%clk 0:03:03]}  g6 {[%clk 0:02:58]} 6. Be2 {[%clk 0:03:01]}  Bg7 {[%clk 0:02:58]} 7. O-O {[%clk 0:03:01]}  O-O {[%clk 0:02:59]} 8. h3 {[%clk 0:03:00]}  Nc6 {[%clk 0:02:53]} 9. c4 {[%clk 0:02:57]}  Nb6 {[%clk 0:02:52]} 10. Nc3 {[%clk 0:02:56]}  Bf5 {[%clk 0:02:51]} 11. b3 {[%clk 0:02:51]}  d5 {[%clk 0:02:51]} 12. Bb2 {[%clk 0:02:41]}  dxc4 {[%clk 0:02:36]} 13. bxc4 {[%clk 0:02:24]}  Nxd4 {[%clk 0:02:36]} 14. Nxd4 {[%clk 0:02:17]}  Qxd4 {[%clk 0:02:36]} 15. Qb3 {[%clk 0:02:17]}  Qh4 {[%clk 0:02:17]} 16. c5 {[%clk 0:02:11]}  Nd7 {[%clk 0:02:17]} 17. Qxb7 {[%clk 0:02:08]}  Nxc5 {[%clk 0:02:15]} 18. Qd5 {[%clk 0:01:48]}  Rac8 {[%clk 0:02:13]} 19. Rac1 {[%clk 0:01:41]}  Rfd8 {[%clk 0:02:11]} 20. Qf3 {[%clk 0:01:42]}  Nd3 {[%clk 0:02:10]} 21. g3 {[%clk 0:00:41]}  Qxh3 {[%clk 0:02:05]} 22. Nd5 {[%clk 0:00:42]}  Nxc1 {[%clk 0:01:48]} 23. Nxe7+ {[%clk 0:00:41]}  Kf8 {[%clk 0:01:48]} 24. Bxg7+ {[%clk 0:00:41]}  Kxg7 {[%clk 0:01:44]} 25. Nxc8 {[%clk 0:00:30]}  Nxe2+ {[%clk 0:01:43]} 26. Qxe2 {[%clk 0:00:31]}  Rxc8 {[%clk 0:01:43]} 27. Qe5+ {[%clk 0:00:08]}  Kg8 {[%clk 0:01:42]} 0-1


[Site "https://www.chess.com"]

[Event "Titled Tuesday Blitz October 5 2021"]
[White "Girinath, P.D.S."]
[Black "Isajevsky, Anton"]
[WhiteFideId "5000572"]
[BlackFideId "4142500"]
[WhiteElo "2333"]
[BlackElo "2510"]
[Result "1/2-1/2"]
[Round "07"]
[TimeControl "180+1"]
[Date "2021.10.05"]
[WhiteClock "0:00:04"]
[BlackClock "0:00:03"]

1. e4 {[%clk 0:02:51]}  c5 {[%clk 0:02:59]} 2. Nf3 {[%clk 0:02:50]}  d6 {[%clk 0:02:56]} 3. Bb5+ {[%clk 0:02:50]}  Nd7 {[%clk 0:02:55]} 4. O-O {[%clk 0:02:47]}  Nf6 {[%clk 0:02:54]} 5. Re1 {[%clk 0:02:46]}  a6 {[%clk 0:02:54]} 6. Bf1 {[%clk 0:02:40]}  b5 {[%clk 0:02:51]} 7. a4 {[%clk 0:02:34]}  Bb7 {[%clk 0:02:50]} 8. d3 {[%clk 0:02:03]}  g6 {[%clk 0:02:38]} 9. axb5 {[%clk 0:01:51]}  axb5 {[%clk 0:02:37]} 10. Rxa8 {[%clk 0:01:51]}  Qxa8 {[%clk 0:02:36]} 11. Nc3 {[%clk 0:01:52]}  b4 {[%clk 0:02:32]} 12. Nb5 {[%clk 0:01:50]}  Qa5 {[%clk 0:02:31]} 13. c4 {[%clk 0:01:35]}  bxc3 {[%clk 0:02:17]} 14. Nxc3 {[%clk 0:01:03]}  Bg7 {[%clk 0:02:16]} 15. Qb3 {[%clk 0:00:59]}  Qb6 {[%clk 0:01:45]} 16. Qxb6 {[%clk 0:00:54]}  Nxb6 {[%clk 0:01:46]} 17. d4 {[%clk 0:00:55]}  cxd4 {[%clk 0:01:44]} 18. Nxd4 {[%clk 0:00:55]}  O-O {[%clk 0:01:35]} 19. Ndb5 {[%clk 0:00:36]}  Rc8 {[%clk 0:01:29]} 20. f3 {[%clk 0:00:33]}  Nfd7 {[%clk 0:01:23]} 21. Be3 {[%clk 0:00:32]}  Kf8 {[%clk 0:01:12]} 22. Ra1 {[%clk 0:00:29]}  Ra8 {[%clk 0:01:11]} 23. Rxa8+ {[%clk 0:00:28]}  Bxa8 {[%clk 0:01:10]} 24. Bd4 {[%clk 0:00:24]}  Bh6 {[%clk 0:01:02]} 25. Nc7 {[%clk 0:00:18]}  Bb7 {[%clk 0:01:00]} 26. Bb5 {[%clk 0:00:17]}  e6 {[%clk 0:00:54]} 27. Kf2 {[%clk 0:00:12]}  Ke7 {[%clk 0:00:43]} 28. Ba6 {[%clk 0:00:12]}  Bxa6 {[%clk 0:00:26]} 29. Nxa6 {[%clk 0:00:13]}  Bc1 {[%clk 0:00:25]} 30. Nb5 {[%clk 0:00:10]}  e5 {[%clk 0:00:13]} 31. Bxb6 {[%clk 0:00:09]}  Nxb6 {[%clk 0:00:12]} 32. b3 {[%clk 0:00:09]}  d5 {[%clk 0:00:12]} 33. Nb4 {[%clk 0:00:07]}  d4 {[%clk 0:00:07]} 34. Nd5+ {[%clk 0:00:06]}  Nxd5 {[%clk 0:00:07]} 35. exd5 {[%clk 0:00:06]}  Kd7 {[%clk 0:00:06]} 36. Ke2 {[%clk 0:00:07]}  f5 {[%clk 0:00:05]} 37. Kd3 {[%clk 0:00:07]}  Bg5 {[%clk 0:00:04]} 38. g4 {[%clk 0:00:06]}  Be7 {[%clk 0:00:04]} 39. h3 {[%clk 0:00:06]}  Bb4 {[%clk 0:00:04]} 40. Kc4 {[%clk 0:00:05]}  Bd6 {[%clk 0:00:03]} 41. Kd3 {[%clk 0:00:04]}  h5 {[%clk 0:00:03]} 42. gxh5 {[%clk 0:00:04]}  gxh5 {[%clk 0:00:03]} 43. Kc4 {[%clk 0:00:03]}  Be7 {[%clk 0:00:03]} 44. Kd3 {[%clk 0:00:03]}  Bf8 {[%clk 0:00:02]} 45. Kc4 {[%clk 0:00:03]}  Be7 {[%clk 0:00:02]} 46. Kd3 {[%clk 0:00:04]}  Bf8 {[%clk 0:00:03]} 47. Kc4 {[%clk 0:00:04]}  Be7 {[%clk 0:00:03]} 1/2-1/2


[Site "https://www.chess.com"]

[Event "Titled Tuesday Blitz October 5 2021"]
[White "Harshavardhan G B"]
[Black "Martin Carmona, Gaston Manuel"]
[WhiteFideId "25059009"]
[BlackFideId "22284567"]
[WhiteElo "1825"]
[BlackElo "2161"]
[Result "1-0"]
[Round "07"]
[TimeControl "180+1"]
[Date "2021.10.05"]
[WhiteClock "0:00:39"]
[BlackClock "0:00:08"]

1. Nf3 {[%clk 0:02:52]}  Nf6 {[%clk 0:02:59]} 2. g3 {[%clk 0:02:51]}  g6 {[%clk 0:02:59]} 3. Bg2 {[%clk 0:02:50]}  Bg7 {[%clk 0:03:00]} 4. O-O {[%clk 0:02:51]}  O-O {[%clk 0:03:01]} 5. d3 {[%clk 0:02:51]}  d6 {[%clk 0:03:00]} 6. Nbd2 {[%clk 0:02:52]}  c5 {[%clk 0:03:01]} 7. e4 {[%clk 0:02:52]}  Nc6 {[%clk 0:03:01]} 8. Nh4 {[%clk 0:02:51]}  Rb8 {[%clk 0:02:50]} 9. f4 {[%clk 0:02:50]}  Bg4 {[%clk 0:02:43]} 10. Nhf3 {[%clk 0:02:49]}  Nd4 {[%clk 0:02:44]} 11. c3 {[%clk 0:02:47]}  Nxf3+ {[%clk 0:02:42]} 12. Nxf3 {[%clk 0:02:48]}  b5 {[%clk 0:02:42]} 13. h3 {[%clk 0:02:44]}  Bxf3 {[%clk 0:02:41]} 14. Bxf3 {[%clk 0:02:45]}  b4 {[%clk 0:02:41]} 15. c4 {[%clk 0:02:42]}  Ne8 {[%clk 0:02:41]} 16. Qe2 {[%clk 0:02:40]}  Nc7 {[%clk 0:02:38]} 17. f5 {[%clk 0:02:37]}  Be5 {[%clk 0:02:35]} 18. Bf4 {[%clk 0:02:28]}  f6 {[%clk 0:02:35]} 19. fxg6 {[%clk 0:02:22]}  hxg6 {[%clk 0:02:34]} 20. Bg4 {[%clk 0:02:22]}  Kg7 {[%clk 0:02:32]} 21. Kh2 {[%clk 0:02:19]}  a5 {[%clk 0:02:27]} 22. Rf2 {[%clk 0:02:16]}  a4 {[%clk 0:02:27]} 23. Raf1 {[%clk 0:02:15]}  e6 {[%clk 0:02:14]} 24. Qd2 {[%clk 0:02:07]}  g5 {[%clk 0:02:04]} 25. Be3 {[%clk 0:02:03]}  Rh8 {[%clk 0:01:58]} 26. d4 {[%clk 0:02:00]}  cxd4 {[%clk 0:01:57]} 27. Bxd4 {[%clk 0:02:01]}  Rf8 {[%clk 0:01:46]} 28. Qe3 {[%clk 0:01:53]}  Qe7 {[%clk 0:01:45]} 29. Bxe5 {[%clk 0:01:36]}  dxe5 {[%clk 0:01:26]} 30. Rxf6 {[%clk 0:01:31]}  Qxf6 {[%clk 0:01:10]} 31. Rxf6 {[%clk 0:01:29]}  Kxf6 {[%clk 0:01:06]} 32. Qf2+ {[%clk 0:01:28]}  Ke7 {[%clk 0:01:02]} 33. Qc5+ {[%clk 0:01:23]}  Kd7 {[%clk 0:01:02]} 34. Kg2 {[%clk 0:01:22]}  Rf6 {[%clk 0:00:57]} 35. Qxe5 {[%clk 0:01:20]}  Rbf8 {[%clk 0:00:57]} 36. Qd4+ {[%clk 0:01:20]}  Kc6 {[%clk 0:00:54]} 37. e5 {[%clk 0:01:19]}  Rf1 {[%clk 0:00:50]} 38. h4 {[%clk 0:01:16]}  gxh4 {[%clk 0:00:49]} 39. gxh4 {[%clk 0:01:12]}  R8f4 {[%clk 0:00:48]} 40. Qd6+ {[%clk 0:01:10]}  Kb7 {[%clk 0:00:48]} 41. Kg3 {[%clk 0:01:03]}  Rxc4 {[%clk 0:00:41]} 42. Bf3+ {[%clk 0:01:03]}  Ka7 {[%clk 0:00:34]} 43. Be2 {[%clk 0:00:59]}  Rg1+ {[%clk 0:00:17]} 44. Kf2 {[%clk 0:00:55]}  Rgc1 {[%clk 0:00:13]} 45. Bxc4 {[%clk 0:00:53]}  Rxc4 {[%clk 0:00:14]} 46. h5 {[%clk 0:00:53]}  Kb7 {[%clk 0:00:14]} 47. Qd3 {[%clk 0:00:43]}  Rh4 {[%clk 0:00:13]} 48. Kg3 {[%clk 0:00:40]}  Rxh5 {[%clk 0:00:06]} 49. Qf3+ {[%clk 0:00:41]}  Nd5 {[%clk 0:00:07]} 50. Qxh5 {[%clk 0:00:41]}  Kc6 {[%clk 0:00:08]} 51. Qe8+ {[%clk 0:00:39]}  Kc5 {[%clk 0:00:08]} 52. Qxe6 {[%clk 0:00:39]}  Kd4 {[%clk 0:00:09]} 53. Qd6 {[%clk 0:00:39]}  Ke4 {[%clk 0:00:08]} 54. e6 {[%clk 0:00:39]} 1-0


[Site "https://www.chess.com"]